[Event "December 5 Early 2023"]
[Site "https://www.chess.com"]
[Date "2023.12.05"]
[Round "4"]
[White "Toman, Ondrej"]
[Black "Matthes, Aaron"]
[Result "1-0"]
[Board "141"]
[TimeControl "180+1"]
[WhiteFideId "344516"]
[BlackFideId "16227310"]
[WhiteElo "2592"]
[BlackElo "2410"]
[WhiteTeam "CZE"]
[BlackTeam "GER"]
[WhiteClock "0:00:05"]
[BlackClock "0:00:12"]

1. d4 {[%clk 0:03:00]}  Nf6 {[%clk 0:02:58]} 2. Bg5 {[%clk 0:03:00]}  e6 {[%clk 0:02:55]} 3. Nd2 {[%clk 0:03:00]}  Be7 {[%clk 0:02:56]} 4. e3 {[%clk 0:03:00]}  b6 {[%clk 0:02:52]} 5. f4 {[%clk 0:02:57]}  Bb7 {[%clk 0:02:52]} 6. Ngf3 {[%clk 0:02:57]}  d6 {[%clk 0:02:53]} 7. Bd3 {[%clk 0:02:54]}  Nbd7 {[%clk 0:02:53]} 8. O-O {[%clk 0:02:51]}  O-O {[%clk 0:02:46]} 9. Qe1 {[%clk 0:02:42]}  h6 {[%clk 0:02:44]} 10. Qh4 {[%clk 0:02:13]}  Nd5 {[%clk 0:02:41]} 11. Bxe7 {[%clk 0:02:08]}  Qxe7 {[%clk 0:02:41]} 12. Qxe7 {[%clk 0:02:06]}  Nxe7 {[%clk 0:02:41]} 13. e4 {[%clk 0:02:05]}  c5 {[%clk 0:02:37]} 14. c3 {[%clk 0:02:05]}  Rac8 {[%clk 0:02:35]} 15. Rad1 {[%clk 0:02:03]}  cxd4 {[%clk 0:02:16]} 16. Nxd4 {[%clk 0:02:04]}  Nc5 {[%clk 0:02:10]} 17. Bb1 {[%clk 0:01:58]}  Na4 {[%clk 0:02:06]} 18. Rc1 {[%clk 0:01:01]}  Nxb2 {[%clk 0:01:58]} 19. Nb5 {[%clk 0:01:02]}  Ba6 {[%clk 0:01:54]} 20. Nxd6 {[%clk 0:01:01]}  Bxf1 {[%clk 0:01:52]} 21. Nxc8 {[%clk 0:01:01]}  Rxc8 {[%clk 0:01:52]} 22. Kxf1 {[%clk 0:00:56]}  Nc4 {[%clk 0:01:42]} 23. Ke2 {[%clk 0:00:52]}  Nxd2 {[%clk 0:01:35]} 24. Kxd2 {[%clk 0:00:53]}  Kf8 {[%clk 0:01:35]} 25. Bd3 {[%clk 0:00:53]}  Nc6 {[%clk 0:01:34]} 26. e5 {[%clk 0:00:48]}  Ke7 {[%clk 0:01:31]} 27. Be4 {[%clk 0:00:45]}  Na5 {[%clk 0:01:30]} 28. Bd3 {[%clk 0:00:45]}  Rc5 {[%clk 0:01:26]} 29. c4 {[%clk 0:00:41]}  Nc6 {[%clk 0:01:22]} 30. Rb1 {[%clk 0:00:34]}  Ra5 {[%clk 0:01:17]} 31. Rb2 {[%clk 0:00:34]}  Nd8 {[%clk 0:01:07]} 32. Be4 {[%clk 0:00:30]}  Kd7 {[%clk 0:00:59]} 33. Kc3 {[%clk 0:00:28]}  Kc7 {[%clk 0:00:59]} 34. Kb3 {[%clk 0:00:24]}  Nc6 {[%clk 0:00:51]} 35. Bxc6 {[%clk 0:00:21]}  Kxc6 {[%clk 0:00:51]} 36. Rd2 {[%clk 0:00:21]}  Kc7 {[%clk 0:00:52]} 37. Kb4 {[%clk 0:00:17]}  Rc5 {[%clk 0:00:50]} 38. g4 {[%clk 0:00:16]}  g5 {[%clk 0:00:47]} 39. Rf2 {[%clk 0:00:15]}  a5+ {[%clk 0:00:41]} 40. Kb3 {[%clk 0:00:14]}  gxf4 {[%clk 0:00:41]} 41. Rxf4 {[%clk 0:00:14]}  Rxe5 {[%clk 0:00:41]} 42. Rxf7+ {[%clk 0:00:15]}  Kc6 {[%clk 0:00:41]} 43. Rf6 {[%clk 0:00:15]}  Re3+ {[%clk 0:00:40]} 44. Kc2 {[%clk 0:00:15]}  Re2+ {[%clk 0:00:40]} 45. Kc3 {[%clk 0:00:14]}  Rxh2 {[%clk 0:00:39]} 46. Rxe6+ {[%clk 0:00:14]}  Kc5 {[%clk 0:00:39]} 47. Re5+ {[%clk 0:00:14]}  Kc6 {[%clk 0:00:40]} 48. a4 {[%clk 0:00:11]}  Kb7 {[%clk 0:00:37]} 49. Re6 {[%clk 0:00:11]}  Ka7 {[%clk 0:00:36]} 50. Rg6 {[%clk 0:00:11]}  Rh3+ {[%clk 0:00:35]} 51. Kd4 {[%clk 0:00:11]}  Kb7 {[%clk 0:00:34]} 52. Rg7+ {[%clk 0:00:10]}  Kc6 {[%clk 0:00:33]} 53. Rg6+ {[%clk 0:00:11]}  Kc7 {[%clk 0:00:34]} 54. Ke4 {[%clk 0:00:11]}  Rc3 {[%clk 0:00:32]} 55. Kd5 {[%clk 0:00:11]}  Rd3+ {[%clk 0:00:32]} 56. Ke4 {[%clk 0:00:11]}  Rh3 {[%clk 0:00:32]} 57. Kd4 {[%clk 0:00:11]}  Rh1 {[%clk 0:00:30]} 58. Rg7+ {[%clk 0:00:10]}  Kc6 {[%clk 0:00:31]} 59. Rg6+ {[%clk 0:00:11]}  Kc7 {[%clk 0:00:31]} 60. Ke5 {[%clk 0:00:10]}  Rc1 {[%clk 0:00:28]} 61. Rxh6 {[%clk 0:00:09]}  Rxc4 {[%clk 0:00:28]} 62. g5 {[%clk 0:00:10]}  Rxa4 {[%clk 0:00:29]} 63. g6 {[%clk 0:00:09]}  Rg4 {[%clk 0:00:29]} 64. Kf6 {[%clk 0:00:08]}  Kc6 {[%clk 0:00:28]} 65. g7 {[%clk 0:00:08]}  Rxg7 {[%clk 0:00:26]} 66. Kxg7+ {[%clk 0:00:08]}  Kc5 {[%clk 0:00:27]} 67. Kf6 {[%clk 0:00:08]}  a4 {[%clk 0:00:28]} 68. Ke5 {[%clk 0:00:07]}  a3 {[%clk 0:00:26]} 69. Rh4 {[%clk 0:00:04]}  b5 {[%clk 0:00:24]} 70. Rh1 {[%clk 0:00:02]}  b4 {[%clk 0:00:21]} 71. Rc1+ {[%clk 0:00:03]}  Kb5 {[%clk 0:00:21]} 72. Kd4 {[%clk 0:00:03]}  b3 {[%clk 0:00:18]} 73. Kc3 {[%clk 0:00:03]}  Ka4 {[%clk 0:00:18]} 74. Re1 {[%clk 0:00:03]}  a2 {[%clk 0:00:18]} 75. Kb2 {[%clk 0:00:03]}  Kb4 {[%clk 0:00:17]} 76. Re4+ {[%clk 0:00:03]}  Kc5 {[%clk 0:00:17]} 77. Rh4 {[%clk 0:00:04]}  Kb5 {[%clk 0:00:17]} 78. Rg4 {[%clk 0:00:04]}  Kc5 {[%clk 0:00:17]} 79. Rg5+ {[%clk 0:00:04]}  Kc4 {[%clk 0:00:18]} 80. Rg3 {[%clk 0:00:04]}  Kb4 {[%clk 0:00:13]} 81. Rxb3+ {[%clk 0:00:04]}  Ka4 {[%clk 0:00:12]} 82. Ra3+ {[%clk 0:00:05]} 1-0

[Event "December 5 Early 2023"]
[Site "https://www.chess.com"]
[Date "2023.12.05"]
[Round "4"]
[White "Balla, Tamas-Kristof"]
[Black "Ginzburg, Yakov"]
[Result "1-0"]
[Board "142"]
[TimeControl "180+1"]
[WhiteFideId "1208497"]
[BlackFideId "4157176"]
[WhiteElo "2410"]
[BlackElo "2591"]
[WhiteTeam "ROU"]
[BlackTeam "RUS"]
[WhiteClock "0:00:19"]
[BlackClock "0:00:15"]

1. e4 {[%clk 0:03:00]}  c5 {[%clk 0:02:58]} 2. c3 {[%clk 0:02:59]}  e5 {[%clk 0:02:57]} 3. Nf3 {[%clk 0:02:58]}  Nc6 {[%clk 0:02:57]} 4. Bc4 {[%clk 0:02:59]}  Qc7 {[%clk 0:02:57]} 5. O-O {[%clk 0:02:55]}  Nf6 {[%clk 0:02:55]} 6. Na3 {[%clk 0:02:53]}  a6 {[%clk 0:02:55]} 7. d4 {[%clk 0:02:52]}  cxd4 {[%clk 0:02:53]} 8. cxd4 {[%clk 0:02:52]}  Bxa3 {[%clk 0:02:51]} 9. bxa3 {[%clk 0:02:46]}  Nxd4 {[%clk 0:02:51]} 10. Nxd4 {[%clk 0:02:35]}  Qxc4 {[%clk 0:02:50]} 11. Nf5 {[%clk 0:02:26]}  O-O {[%clk 0:02:45]} 12. Bb2 {[%clk 0:02:25]}  d5 {[%clk 0:02:36]} 13. Bxe5 {[%clk 0:02:14]}  Bxf5 {[%clk 0:02:36]} 14. exf5 {[%clk 0:02:10]}  Ne4 {[%clk 0:02:29]} 15. f6 {[%clk 0:02:07]}  Nxf6 {[%clk 0:02:11]} 16. Bxf6 {[%clk 0:02:07]}  gxf6 {[%clk 0:02:11]} 17. Rc1 {[%clk 0:02:06]}  Qxa2 {[%clk 0:02:10]} 18. Rc3 {[%clk 0:02:02]}  Rae8 {[%clk 0:01:54]} 19. Qh5 {[%clk 0:01:55]}  Qd2 {[%clk 0:01:37]} 20. Rh3 {[%clk 0:01:43]}  h6 {[%clk 0:01:36]} 21. Rg3+ {[%clk 0:01:29]}  Kh8 {[%clk 0:01:35]} 22. f4 {[%clk 0:01:24]}  Qd4+ {[%clk 0:01:10]} 23. Kh1 {[%clk 0:01:23]}  Kh7 {[%clk 0:01:09]} 24. Qf5+ {[%clk 0:01:22]}  Kh8 {[%clk 0:01:08]} 25. Rd3 {[%clk 0:01:06]}  Qf2 {[%clk 0:00:37]} 26. Qxf6+ {[%clk 0:00:53]}  Kh7 {[%clk 0:00:36]} 27. Rf3 {[%clk 0:00:38]}  Qc2 {[%clk 0:00:36]} 28. Rg3 {[%clk 0:00:33]}  Rg8 {[%clk 0:00:28]} 29. Qxf7+ {[%clk 0:00:32]}  Kh8 {[%clk 0:00:28]} 30. Rh3 {[%clk 0:00:30]}  Qg6 {[%clk 0:00:26]} 31. Qxg6 {[%clk 0:00:22]}  Rxg6 {[%clk 0:00:26]} 32. Rd3 {[%clk 0:00:20]}  Rd6 {[%clk 0:00:22]} 33. Rfd1 {[%clk 0:00:19]}  d4 {[%clk 0:00:21]} 34. g3 {[%clk 0:00:19]}  Re4 {[%clk 0:00:21]} 35. Kg2 {[%clk 0:00:19]}  b5 {[%clk 0:00:16]} 36. Kf3 {[%clk 0:00:19]}  Rde6 {[%clk 0:00:16]} 37. Rxd4 {[%clk 0:00:18]}  Re3+ {[%clk 0:00:16]} 38. Kg4 {[%clk 0:00:18]}  Rxa3 {[%clk 0:00:16]} 39. Rd8+ {[%clk 0:00:18]}  Kg7 {[%clk 0:00:15]} 40. R1d7+ {[%clk 0:00:19]}  Kf6 {[%clk 0:00:15]} 41. Rf8+ {[%clk 0:00:19]}  Kg6 {[%clk 0:00:15]} 42. f5# {[%clk 0:00:19]} 1-0

[Event "December 5 Early 2023"]
[Site "https://www.chess.com"]
[Date "2023.12.05"]
[Round "4"]
[White "Gavrilov, Maxim"]
[Black "Kleibel, Uwe"]
[Result "1-0"]
[Board "155"]
[TimeControl "180+1"]
[WhiteFideId "24271454"]
[BlackFideId "1270982"]
[WhiteElo "2535"]
[BlackElo "2371"]
[WhiteTeam "RUS"]
[BlackTeam "GER"]
[WhiteClock "0:00:14"]
[BlackClock "0:00:07"]

1. d4 {[%clk 0:02:57]}  d5 {[%clk 0:02:55]} 2. c4 {[%clk 0:02:52]}  e6 {[%clk 0:02:30]} 3. Nc3 {[%clk 0:02:50]}  Nf6 {[%clk 0:02:25]} 4. cxd5 {[%clk 0:02:49]}  exd5 {[%clk 0:02:25]} 5. Bg5 {[%clk 0:02:49]}  Be7 {[%clk 0:02:16]} 6. e3 {[%clk 0:02:47]}  O-O {[%clk 0:02:10]} 7. Bd3 {[%clk 0:02:47]}  Re8 {[%clk 0:01:58]} 8. Qc2 {[%clk 0:02:39]}  h6 {[%clk 0:01:58]} 9. Bh4 {[%clk 0:02:35]}  c5 {[%clk 0:01:58]} 10. Nge2 {[%clk 0:02:23]}  Nc6 {[%clk 0:01:55]} 11. dxc5 {[%clk 0:02:16]}  d4 {[%clk 0:01:51]} 12. exd4 {[%clk 0:01:55]}  Nxd4 {[%clk 0:01:51]} 13. Nxd4 {[%clk 0:01:54]}  Qxd4 {[%clk 0:01:50]} 14. Bxf6 {[%clk 0:01:44]}  Bxf6+ {[%clk 0:01:45]} 15. Ne2 {[%clk 0:01:40]}  Qxb2 {[%clk 0:01:35]} 16. Qxb2 {[%clk 0:01:35]}  Bxb2 {[%clk 0:01:36]} 17. Rb1 {[%clk 0:01:33]}  Bd4 {[%clk 0:01:34]} 18. Rc1 {[%clk 0:01:12]}  Bg4 {[%clk 0:01:27]} 19. f3 {[%clk 0:01:09]}  Bd7 {[%clk 0:01:28]} 20. Be4 {[%clk 0:01:05]}  Bf6 {[%clk 0:00:37]} 21. Bxb7 {[%clk 0:00:54]}  Rab8 {[%clk 0:00:37]} 22. c6 {[%clk 0:00:51]}  Bf5 {[%clk 0:00:34]} 23. Kf2 {[%clk 0:00:42]}  Bd3 {[%clk 0:00:30]} 24. Rhe1 {[%clk 0:00:27]}  Bb2 {[%clk 0:00:16]} 25. c7 {[%clk 0:00:17]}  Bxc1 {[%clk 0:00:16]} 26. Nxc1 {[%clk 0:00:16]}  Rbc8 {[%clk 0:00:07]} 27. Rxe8+ {[%clk 0:00:14]} 1-0

[Event "December 5 Early 2023"]
[Site "https://www.chess.com"]
[Date "2023.12.05"]
[Round "4"]
[White "Kolmagorov, Alexey"]
[Black "Silva Lucena, Cristian"]
[Result "0-1"]
[Board "157"]
[TimeControl "180+1"]
[WhiteFideId "34129402"]
[BlackFideId "2232588"]
[WhiteElo "2360"]
[BlackElo "2530"]
[WhiteTeam "RUS"]
[BlackTeam "ESP"]
[WhiteClock "0:00:01"]
[BlackClock "0:00:10"]

1. d4 {[%clk 0:03:00]}  d5 {[%clk 0:02:57]} 2. c4 {[%clk 0:03:01]}  e6 {[%clk 0:02:58]} 3. g3 {[%clk 0:03:01]}  c6 {[%clk 0:02:56]} 4. Bg2 {[%clk 0:02:58]}  dxc4 {[%clk 0:02:55]} 5. Nf3 {[%clk 0:02:50]}  b5 {[%clk 0:02:55]} 6. a4 {[%clk 0:02:49]}  Bb7 {[%clk 0:02:52]} 7. O-O {[%clk 0:02:49]}  Nd7 {[%clk 0:02:51]} 8. e4 {[%clk 0:02:43]}  a6 {[%clk 0:02:49]} 9. Qe2 {[%clk 0:02:34]}  Ngf6 {[%clk 0:02:47]} 10. Rd1 {[%clk 0:02:32]}  Be7 {[%clk 0:02:40]} 11. Nc3 {[%clk 0:02:23]}  O-O {[%clk 0:02:38]} 12. e5 {[%clk 0:01:54]}  Nd5 {[%clk 0:02:37]} 13. Ne4 {[%clk 0:01:54]}  c5 {[%clk 0:02:33]} 14. Bg5 {[%clk 0:01:51]}  cxd4 {[%clk 0:02:31]} 15. Bxe7 {[%clk 0:01:43]}  Qxe7 {[%clk 0:02:19]} 16. Rxd4 {[%clk 0:01:37]}  Nc5 {[%clk 0:02:19]} 17. Nd6 {[%clk 0:01:34]}  Nb3 {[%clk 0:02:19]} 18. Rad1 {[%clk 0:01:12]}  Nxd4 {[%clk 0:02:19]} 19. Rxd4 {[%clk 0:01:13]}  f5 {[%clk 0:02:15]} 20. Qd2 {[%clk 0:00:38]}  Rfd8 {[%clk 0:02:07]} 21. Ng5 {[%clk 0:00:37]}  Rxd6 {[%clk 0:01:05]} 22. exd6 {[%clk 0:00:34]}  Qxd6 {[%clk 0:01:05]} 23. Nxe6 {[%clk 0:00:30]}  Qxe6 {[%clk 0:01:06]} 24. Bxd5 {[%clk 0:00:27]}  Bxd5 {[%clk 0:01:04]} 25. Rxd5 {[%clk 0:00:28]}  Rb8 {[%clk 0:00:51]} 26. Rd6 {[%clk 0:00:27]}  Qe4 {[%clk 0:00:44]} 27. a5 {[%clk 0:00:17]}  Re8 {[%clk 0:00:21]} 28. Rd8 {[%clk 0:00:12]}  Rxd8 {[%clk 0:00:18]} 29. Qxd8+ {[%clk 0:00:13]}  Kf7 {[%clk 0:00:19]} 30. Qd7+ {[%clk 0:00:12]}  Kf6 {[%clk 0:00:19]} 31. Qd8+ {[%clk 0:00:05]}  Qe7 {[%clk 0:00:18]} 32. Qd4+ {[%clk 0:00:05]}  Qe5 {[%clk 0:00:17]} 33. Qb6+ {[%clk 0:00:06]}  Qe6 {[%clk 0:00:17]} 34. Qd8+ {[%clk 0:00:07]}  Kg6 {[%clk 0:00:18]} 35. h4 {[%clk 0:00:05]}  h6 {[%clk 0:00:18]} 36. Qd1 {[%clk 0:00:03]}  b4 {[%clk 0:00:17]} 37. h5+ {[%clk 0:00:02]}  Kh7 {[%clk 0:00:17]} 38. Qf3 {[%clk 0:00:02]}  b3 {[%clk 0:00:15]} 39. Qc3 {[%clk 0:00:02]}  Qd5 {[%clk 0:00:14]} 40. Qb4 {[%clk 0:00:02]}  Qd1+ {[%clk 0:00:13]} 41. Kh2 {[%clk 0:00:02]}  Qxh5+ {[%clk 0:00:12]} 42. Kg1 {[%clk 0:00:02]}  Qd1+ {[%clk 0:00:12]} 43. Kh2 {[%clk 0:00:02]}  Qd5 {[%clk 0:00:12]} 44. Qb6 {[%clk 0:00:01]}  Qf3 {[%clk 0:00:12]} 45. Kg1 {[%clk 0:00:01]}  h5 {[%clk 0:00:12]} 46. Qxa6 {[%clk 0:00:01]}  c3 {[%clk 0:00:09]} 47. bxc3 {[%clk 0:00:01]}  b2 {[%clk 0:00:10]} 48. Qb5 {[%clk 0:00:01]}  Qd1+ {[%clk 0:00:09]} 49. Kh2 {[%clk 0:00:01]}  b1=Q {[%clk 0:00:10]} 50. Qxb1 {[%clk 0:00:01]}  Qxb1 {[%clk 0:00:10]} 51. a6 {[%clk 0:00:01]}  Qb6 {[%clk 0:00:10]} 0-1

[Event "December 5 Early 2023"]
[Site "https://www.chess.com"]
[Date "2023.12.05"]
[Round "4"]
[White "Baches Garcia, Guillermo"]
[Black "Kozelov, Roman"]
[Result "1/2-1/2"]
[Board "161"]
[TimeControl "180+1"]
[WhiteFideId "2209764"]
[BlackFideId "14133377"]
[WhiteElo "2527"]
[BlackElo "2433"]
[WhiteTeam "ESP"]
[BlackTeam "UKR"]
[WhiteClock "0:00:30"]
[BlackClock "0:01:16"]

1. d4 {[%clk 0:03:00]}  d5 {[%clk 0:02:58]} 2. Nf3 {[%clk 0:03:01]}  Nf6 {[%clk 0:02:57]} 3. Bg5 {[%clk 0:03:02]}  e6 {[%clk 0:02:55]} 4. Nbd2 {[%clk 0:03:01]}  Be7 {[%clk 0:02:55]} 5. e3 {[%clk 0:03:02]}  O-O {[%clk 0:02:54]} 6. Bd3 {[%clk 0:03:02]}  b6 {[%clk 0:02:54]} 7. c3 {[%clk 0:02:57]}  Ba6 {[%clk 0:02:54]} 8. Bxa6 {[%clk 0:02:55]}  Nxa6 {[%clk 0:02:54]} 9. Ne5 {[%clk 0:02:55]}  Nb8 {[%clk 0:02:53]} 10. f4 {[%clk 0:02:53]}  c5 {[%clk 0:02:53]} 11. O-O {[%clk 0:02:48]}  Ne8 {[%clk 0:02:52]} 12. Bxe7 {[%clk 0:02:45]}  Qxe7 {[%clk 0:02:52]} 13. Qh5 {[%clk 0:02:43]}  Nd6 {[%clk 0:02:51]} 14. Rf3 {[%clk 0:02:39]}  Nd7 {[%clk 0:02:48]} 15. Rh3 {[%clk 0:02:23]}  Nf6 {[%clk 0:02:47]} 16. Qh4 {[%clk 0:02:19]}  Nf5 {[%clk 0:02:45]} 17. Qf2 {[%clk 0:02:14]}  Nd7 {[%clk 0:02:29]} 18. g4 {[%clk 0:02:07]}  Nd6 {[%clk 0:02:19]} 19. Nc6 {[%clk 0:02:00]}  Qe8 {[%clk 0:02:15]} 20. Qh4 {[%clk 0:01:47]}  h6 {[%clk 0:02:04]} 21. Ne5 {[%clk 0:01:33]}  f5 {[%clk 0:01:56]} 22. g5 {[%clk 0:01:28]}  Nxe5 {[%clk 0:01:54]} 23. fxe5 {[%clk 0:01:21]}  Nf7 {[%clk 0:01:53]} 24. Nf3 {[%clk 0:01:15]}  Qd8 {[%clk 0:01:49]} 25. gxh6 {[%clk 0:00:58]}  Qxh4 {[%clk 0:01:46]} 26. Rxh4 {[%clk 0:00:58]}  gxh6 {[%clk 0:01:46]} 27. Kf2 {[%clk 0:00:56]}  Kh7 {[%clk 0:01:46]} 28. Rh3 {[%clk 0:00:49]}  Rg8 {[%clk 0:01:45]} 29. Rg3 {[%clk 0:00:49]}  Rxg3 {[%clk 0:01:43]} 30. hxg3 {[%clk 0:00:48]}  Rg8 {[%clk 0:01:43]} 31. Rh1 {[%clk 0:00:47]}  Ng5 {[%clk 0:01:38]} 32. Nxg5+ {[%clk 0:00:47]}  Rxg5 {[%clk 0:01:38]} 33. Kf3 {[%clk 0:00:47]}  Kg6 {[%clk 0:01:38]} 34. Rh4 {[%clk 0:00:47]}  h5 {[%clk 0:01:36]} 35. a3 {[%clk 0:00:44]}  Rg4 {[%clk 0:01:36]} 36. Rxg4+ {[%clk 0:00:36]}  hxg4+ {[%clk 0:01:30]} 37. Kf2 {[%clk 0:00:34]}  cxd4 {[%clk 0:01:30]} 38. cxd4 {[%clk 0:00:31]}  Kf7 {[%clk 0:01:25]} 39. b4 {[%clk 0:00:31]}  Ke7 {[%clk 0:01:25]} 40. b5 {[%clk 0:00:30]}  Kf7 {[%clk 0:01:16]} 41. a4 {[%clk 0:00:30]} 1/2-1/2

[Event "December 5 Early 2023"]
[Site "https://www.chess.com"]
[Date "2023.12.05"]
[Round "4"]
[White "Gerbelli Neto, Eduardo"]
[Black "Dauner, Benedikt"]
[Result "0-1"]
[Board "162"]
[TimeControl "180+1"]
[WhiteFideId "2103281"]
[BlackFideId "16225899"]
[WhiteElo "2328"]
[BlackElo "2524"]
[WhiteTeam "BRA"]
[BlackTeam "GER"]
[WhiteClock "0:00:44"]
[BlackClock "0:01:03"]

1. e4 {[%clk 0:03:00]}  c5 {[%clk 0:02:58]} 2. Nc3 {[%clk 0:03:00]}  a6 {[%clk 0:02:54]} 3. f4 {[%clk 0:03:01]}  b5 {[%clk 0:02:53]} 4. g3 {[%clk 0:03:01]}  Bb7 {[%clk 0:02:52]} 5. Bg2 {[%clk 0:03:00]}  e6 {[%clk 0:02:50]} 6. d3 {[%clk 0:03:01]}  h5 {[%clk 0:02:49]} 7. Nh3 {[%clk 0:03:00]}  Nf6 {[%clk 0:02:44]} 8. O-O {[%clk 0:03:00]}  Ng4 {[%clk 0:02:43]} 9. f5 {[%clk 0:02:48]}  e5 {[%clk 0:02:38]} 10. Bg5 {[%clk 0:02:38]}  Be7 {[%clk 0:02:32]} 11. Bxe7 {[%clk 0:02:33]}  Qxe7 {[%clk 0:02:33]} 12. Nd5 {[%clk 0:02:32]}  Bxd5 {[%clk 0:02:30]} 13. exd5 {[%clk 0:02:33]}  d6 {[%clk 0:02:30]} 14. Qe2 {[%clk 0:02:22]}  Nd7 {[%clk 0:02:24]} 15. c4 {[%clk 0:02:17]}  Qf6 {[%clk 0:02:07]} 16. Nf2 {[%clk 0:01:52]}  Nxf2 {[%clk 0:02:05]} 17. Rxf2 {[%clk 0:01:50]}  h4 {[%clk 0:02:05]} 18. g4 {[%clk 0:01:42]}  Qg5 {[%clk 0:02:01]} 19. h3 {[%clk 0:01:40]}  f6 {[%clk 0:01:59]} 20. cxb5 {[%clk 0:01:36]}  axb5 {[%clk 0:01:58]} 21. d4 {[%clk 0:01:36]}  b4 {[%clk 0:01:56]} 22. dxc5 {[%clk 0:01:36]}  Nxc5 {[%clk 0:01:54]} 23. Qb5+ {[%clk 0:01:35]}  Ke7 {[%clk 0:01:53]} 24. Qxb4 {[%clk 0:01:25]}  Rhb8 {[%clk 0:01:45]} 25. Qd2 {[%clk 0:01:25]}  Qxd2 {[%clk 0:01:45]} 26. Rxd2 {[%clk 0:01:26]}  Nb3 {[%clk 0:01:45]} 27. Rdd1 {[%clk 0:01:18]}  Nxa1 {[%clk 0:01:45]} 28. Rxa1 {[%clk 0:01:19]}  Rxb2 {[%clk 0:01:44]} 29. a4 {[%clk 0:01:17]}  Ra5 {[%clk 0:01:41]} 30. Bf1 {[%clk 0:01:13]}  Rb4 {[%clk 0:01:41]} 31. Rc1 {[%clk 0:01:10]}  Rbxa4 {[%clk 0:01:18]} 32. Rc7+ {[%clk 0:01:10]}  Kf8 {[%clk 0:01:17]} 33. Rc6 {[%clk 0:00:48]}  Rxd5 {[%clk 0:01:09]} 34. Bc4 {[%clk 0:00:44]}  Rc5 {[%clk 0:01:03]} 0-1

[Event "December 5 Early 2023"]
[Site "https://www.chess.com"]
[Date "2023.12.05"]
[Round "4"]
[White "Zivic, Dragan"]
[Black "Gutierrez Olivares, Daniel"]
[Result "1-0"]
[Board "164"]
[TimeControl "180+1"]
[WhiteFideId "904740"]
[BlackFideId "2264005"]
[WhiteElo "2321"]
[BlackElo "2521"]
[WhiteTeam "SRB"]
[BlackTeam "ESP"]
[WhiteClock "0:00:01"]
[BlackClock "0:00:00"]

1. c4 {[%clk 0:03:00]}  d6 {[%clk 0:02:58]} 2. Nc3 {[%clk 0:03:01]}  Nd7 {[%clk 0:02:58]} 3. d4 {[%clk 0:03:00]}  e5 {[%clk 0:02:57]} 4. Nf3 {[%clk 0:02:58]}  Ngf6 {[%clk 0:02:58]} 5. e4 {[%clk 0:02:49]}  Be7 {[%clk 0:02:58]} 6. Be2 {[%clk 0:02:45]}  O-O {[%clk 0:02:58]} 7. O-O {[%clk 0:02:42]}  c6 {[%clk 0:02:58]} 8. Bg5 {[%clk 0:02:39]}  Qc7 {[%clk 0:02:58]} 9. Rc1 {[%clk 0:02:35]}  Re8 {[%clk 0:02:57]} 10. h3 {[%clk 0:02:31]}  h6 {[%clk 0:02:54]} 11. Be3 {[%clk 0:02:29]}  exd4 {[%clk 0:02:35]} 12. Nxd4 {[%clk 0:02:29]}  Bf8 {[%clk 0:02:33]} 13. f3 {[%clk 0:02:26]}  Ne5 {[%clk 0:02:26]} 14. Qd2 {[%clk 0:02:22]}  Bd7 {[%clk 0:02:12]} 15. f4 {[%clk 0:02:18]}  Ng6 {[%clk 0:02:11]} 16. Bd3 {[%clk 0:02:18]}  Rad8 {[%clk 0:02:05]} 17. Rce1 {[%clk 0:02:14]}  a6 {[%clk 0:02:00]} 18. a4 {[%clk 0:02:12]}  Bc8 {[%clk 0:01:42]} 19. b4 {[%clk 0:02:09]}  c5 {[%clk 0:01:37]} 20. Nb3 {[%clk 0:01:53]}  cxb4 {[%clk 0:01:28]} 21. Nd5 {[%clk 0:01:52]}  Nxd5 {[%clk 0:01:27]} 22. exd5 {[%clk 0:01:47]}  a5 {[%clk 0:01:13]} 23. Nd4 {[%clk 0:01:37]}  Bd7 {[%clk 0:01:09]} 24. Kh1 {[%clk 0:01:27]}  Be7 {[%clk 0:00:57]} 25. f5 {[%clk 0:01:13]}  Ne5 {[%clk 0:00:53]} 26. f6 {[%clk 0:01:07]}  Bxf6 {[%clk 0:00:51]} 27. Rxf6 {[%clk 0:00:52]}  gxf6 {[%clk 0:00:46]} 28. Bxh6 {[%clk 0:00:47]}  Nxd3 {[%clk 0:00:42]} 29. Rxe8+ {[%clk 0:00:45]}  Rxe8 {[%clk 0:00:41]} 30. Qxd3 {[%clk 0:00:46]}  Kh8 {[%clk 0:00:23]} 31. Qg3 {[%clk 0:00:43]}  Rg8 {[%clk 0:00:20]} 32. Qh4 {[%clk 0:00:43]}  Rg6 {[%clk 0:00:20]} 33. Ne2 {[%clk 0:00:35]}  Kg8 {[%clk 0:00:14]} 34. Nf4 {[%clk 0:00:33]}  Qxc4 {[%clk 0:00:13]} 35. Nxg6 {[%clk 0:00:31]}  Qxh4 {[%clk 0:00:13]} 36. Nxh4 {[%clk 0:00:32]}  Bxa4 {[%clk 0:00:14]} 37. Nf5 {[%clk 0:00:26]}  Bb3 {[%clk 0:00:13]} 38. Nxd6 {[%clk 0:00:19]}  Bxd5 {[%clk 0:00:13]} 39. Kg1 {[%clk 0:00:16]}  a4 {[%clk 0:00:12]} 40. Bd2 {[%clk 0:00:14]}  b3 {[%clk 0:00:06]} 41. Bc1 {[%clk 0:00:14]}  Kf8 {[%clk 0:00:06]} 42. Nb5 {[%clk 0:00:11]}  Ke7 {[%clk 0:00:06]} 43. Kf2 {[%clk 0:00:08]}  Ke6 {[%clk 0:00:06]} 44. h4 {[%clk 0:00:07]}  Kf5 {[%clk 0:00:05]} 45. g3 {[%clk 0:00:05]}  Kg4 {[%clk 0:00:04]} 46. Nc3 {[%clk 0:00:05]}  Bc6 {[%clk 0:00:04]} 47. Ke3 {[%clk 0:00:02]}  b5 {[%clk 0:00:04]} 48. Ba3 {[%clk 0:00:01]}  Kxg3 {[%clk 0:00:03]} 49. h5 {[%clk 0:00:01]}  f5 {[%clk 0:00:01]} 50. h6 {[%clk 0:00:01]}  f4+ {[%clk 0:00:00]} 51. Kd2 {[%clk 0:00:01]} 1-0